[Event "*** Titled Tuesday Blitz"]
[Site "Chess.com"]
[Date "2019.10.01"]
[Round "1"]
[White "GianmarcoVaR"]
[Black "Colombiano07"]
[Result "1-0"]
[WhiteElo "2608"]
[BlackElo "2214"]
[TimeControl "180+2"]
[EndTime "13:08:18 PDT"]
[Termination "GianmarcoVaR won by resignation"]

1. d4 {[%clk 0:03:01.9]} 1... d5 {[%clk 0:02:58.1]} 2. Nf3 {[%clk 0:03:02.9]}
2... Bf5 {[%clk 0:02:55.9]} 3. c4 {[%clk 0:03:01]} 3... e6 {[%clk 0:02:57]} 4.
Nc3 {[%clk 0:02:59]} 4... c6 {[%clk 0:02:58.2]} 5. g3 {[%clk 0:02:54.1]} 5...
Nd7 {[%clk 0:02:58.2]} 6. Bg2 {[%clk 0:02:55.4]} 6... Ngf6 {[%clk 0:02:58.1]} 7.
Nh4 {[%clk 0:02:55.6]} 7... Bg4 {[%clk 0:02:58.4]} 8. h3 {[%clk 0:02:56.3]} 8...
Bh5 {[%clk 0:02:58.3]} 9. g4 {[%clk 0:02:56.6]} 9... Ng8 {[%clk 0:02:59.8]} 10.
Nf3 {[%clk 0:02:53.5]} 10... Bg6 {[%clk 0:03:00]} 11. Qb3 {[%clk 0:02:53.4]}
11... Qb6 {[%clk 0:03:00]} 12. c5 {[%clk 0:02:52.3]} 12... Qxb3 {[%clk
0:02:59.9]} 13. axb3 {[%clk 0:02:53.8]} 13... a6 {[%clk 0:03:01.4]} 14. Nh4
{[%clk 0:02:51.9]} 14... Bc2 {[%clk 0:03:00.3]} 15. b4 {[%clk 0:02:51.7]} 15...
h6 {[%clk 0:03:00.7]} 16. b5 {[%clk 0:02:50.6]} 16... Ngf6 {[%clk 0:02:53]} 17.
b4 {[%clk 0:02:06]} 17... Be7 {[%clk 0:02:50]} 18. Bd2 {[%clk 0:01:59.2]} 18...
O-O {[%clk 0:02:49.7]} 19. bxa6 {[%clk 0:01:55.7]} 19... Rxa6 {[%clk 0:02:48]}
20. Rxa6 {[%clk 0:01:54.8]} 20... bxa6 {[%clk 0:02:49.9]} 21. O-O {[%clk
0:01:41.6]} 21... Bb3 {[%clk 0:02:14.4]} 22. Nf3 {[%clk 0:01:16.4]} 22... Bc4
{[%clk 0:01:55.5]} 23. Bf4 {[%clk 0:00:59.6]} 23... Ra8 {[%clk 0:01:38.9]} 24.
Nd2 {[%clk 0:00:52.3]} 24... Bb5 {[%clk 0:01:38.4]} 25. Ra1 {[%clk 0:00:50.9]}
25... Rc8 {[%clk 0:01:32.6]} 26. Nb3 {[%clk 0:00:41.1]} 26... Kf8 {[%clk
0:01:31]} 27. f3 {[%clk 0:00:40.6]} 27... Ke8 {[%clk 0:01:31.9]} 28. e4 {[%clk
0:00:42.1]} 28... Bd8 {[%clk 0:01:31.1]} 29. e5 {[%clk 0:00:42.5]} 29... Ng8
{[%clk 0:01:31.1]} 30. Bf1 {[%clk 0:00:40.6]} 30... Bg5 {[%clk 0:01:26.9]} 31.
Bg3 {[%clk 0:00:35.8]} 31... Be3+ {[%clk 0:01:21.4]} 32. Bf2 {[%clk 0:00:36.2]}
32... Bxf2+ {[%clk 0:01:22.3]} 33. Kxf2 {[%clk 0:00:37.3]} 33... Ne7 {[%clk
0:01:19.3]} 34. Nxb5 {[%clk 0:00:26.8]} 34... axb5 {[%clk 0:01:11.7]} 35. Bd3
{[%clk 0:00:26.6]} 35... Kd8 {[%clk 0:01:10.8]} 36. f4 {[%clk 0:00:27.7]} 36...
Rb8 {[%clk 0:01:09]} 37. h4 {[%clk 0:00:27.9]} 37... Kc7 {[%clk 0:01:08.4]} 38.
Ra7+ {[%clk 0:00:25.8]} 38... Rb7 {[%clk 0:01:09.2]} 39. Ra6 {[%clk 0:00:24.9]}
39... Kb8 {[%clk 0:01:06.9]} 40. Na5 {[%clk 0:00:24.8]} 40... Ra7 {[%clk
0:01:02]} 41. Nxc6+ {[%clk 0:00:25.3]} 41... Nxc6 {[%clk 0:01:01.8]} 42. Rxc6
{[%clk 0:00:27.2]} 42... Ra4 {[%clk 0:00:54.3]} 43. Rd6 {[%clk 0:00:26.4]} 43...
Kc7 {[%clk 0:00:30.2]} 44. Rxd7+ {[%clk 0:00:27]} 1-0

[Event "*** Titled Tuesday Blitz"]
[Site "Chess.com"]
[Date "2019.10.01"]
[Round "1"]
[White "HanSchut"]
[Black "Bathory44"]
[Result "0-1"]
[WhiteElo "2201"]
[BlackElo "2602"]
[TimeControl "180+2"]
[EndTime "13:08:20 PDT"]
[Termination "Bathory44 won by resignation"]

1. e4 {[%clk 0:03:01.2]} 1... e6 {[%clk 0:03:00.8]} 2. d4 {[%clk 0:03:01.7]}
2... d5 {[%clk 0:03:02.3]} 3. exd5 {[%clk 0:03:03]} 3... exd5 {[%clk 0:03:03.1]}
4. Nf3 {[%clk 0:03:02.8]} 4... Nc6 {[%clk 0:03:03.6]} 5. Bb5 {[%clk 0:03:02.3]}
5... Bd6 {[%clk 0:03:04]} 6. O-O {[%clk 0:02:59]} 6... Ne7 {[%clk 0:03:04.4]} 7.
Ne5 {[%clk 0:02:56]} 7... O-O {[%clk 0:03:03.6]} 8. Nxc6 {[%clk 0:02:52.1]} 8...
bxc6 {[%clk 0:03:03.7]} 9. Bd3 {[%clk 0:02:51]} 9... c5 {[%clk 0:02:57.4]} 10.
dxc5 {[%clk 0:02:45.8]} 10... Bxc5 {[%clk 0:02:57.8]} 11. Nc3 {[%clk 0:02:25.2]}
11... c6 {[%clk 0:02:58.4]} 12. Bg5 {[%clk 0:02:21]} 12... f6 {[%clk 0:02:49]}
13. Bd2 {[%clk 0:02:15]} 13... Bf5 {[%clk 0:02:17.4]} 14. Qf3 {[%clk 0:01:58.7]}
14... Qd7 {[%clk 0:02:14.6]} 15. Rfe1 {[%clk 0:01:56]} 15... Bxd3 {[%clk
0:02:10.4]} 16. Qxd3 {[%clk 0:01:56.2]} 16... Rfe8 {[%clk 0:02:10.5]} 17. Be3
{[%clk 0:01:36.4]} 17... Bd6 {[%clk 0:02:03.5]} 18. Na4 {[%clk 0:01:33.3]} 18...
Qg4 {[%clk 0:01:53.5]} 19. Nc5 {[%clk 0:01:30.9]} 19... Ng6 {[%clk 0:01:36.7]}
20. h3 {[%clk 0:01:29.3]} 20... Qh5 {[%clk 0:01:31.3]} 21. b4 {[%clk 0:00:56.3]}
21... Nh4 {[%clk 0:01:24.9]} 22. c4 {[%clk 0:00:40]} 22... Qe5 {[%clk
0:01:03.4]} 23. f4 {[%clk 0:00:36]} 23... Qb2 {[%clk 0:01:04.4]} 24. Bf2 {[%clk
0:00:29.9]} 24... Qxb4 {[%clk 0:00:36.4]} 25. Rab1 {[%clk 0:00:31]} 25... Rxe1+
{[%clk 0:00:32.9]} 26. Bxe1 {[%clk 0:00:25.5]} 26... Qxc5+ {[%clk 0:00:27.9]}
27. Bf2 {[%clk 0:00:26.9]} 27... Qxc4 {[%clk 0:00:28.9]} 28. Qxc4 {[%clk
0:00:28.1]} 28... dxc4 {[%clk 0:00:30.1]} 29. Bxh4 {[%clk 0:00:30]} 29... Bxf4
{[%clk 0:00:31.5]} 30. Rb4 {[%clk 0:00:26]} 30... g5 {[%clk 0:00:27.4]} 31. Be1
{[%clk 0:00:26]} 31... Re8 {[%clk 0:00:26.6]} 32. Kf1 {[%clk 0:00:26]} 32... Re4
{[%clk 0:00:21.9]} 33. Bc3 {[%clk 0:00:26.3]} 33... Kf7 {[%clk 0:00:21.5]} 34.
Rb7+ {[%clk 0:00:26.7]} 34... Kg6 {[%clk 0:00:22.8]} 35. Rxa7 {[%clk 0:00:23.7]}
35... Re3 {[%clk 0:00:24]} 36. Bd2 {[%clk 0:00:21.6]} 36... c3 {[%clk
0:00:25.3]} 0-1

[Event "*** Titled Tuesday Blitz"]
[Site "Chess.com"]
[Date "2019.10.01"]
[Round "1"]
[White "Ginzburg_Yakov"]
[Black "aranibos"]
[Result "1-0"]
[WhiteElo "2574"]
[BlackElo "2177"]
[TimeControl "180+2"]
[EndTime "13:08:23 PDT"]
[Termination "Ginzburg_Yakov won by resignation"]

1. e4 {[%clk 0:03:00.6]} 1... c6 {[%clk 0:02:59.7]} 2. d4 {[%clk 0:03:01.6]}
2... d5 {[%clk 0:02:59.8]} 3. Nc3 {[%clk 0:03:02.9]} 3... dxe4 {[%clk 0:02:53]}
4. Nxe4 {[%clk 0:03:03.9]} 4... Bf5 {[%clk 0:02:53.7]} 5. Ng3 {[%clk 0:03:04.4]}
5... Bg6 {[%clk 0:02:54.4]} 6. Nf3 {[%clk 0:03:05.6]} 6... Nd7 {[%clk
0:02:55.6]} 7. h4 {[%clk 0:03:06.8]} 7... h6 {[%clk 0:02:55.7]} 8. h5 {[%clk
0:03:08.1]} 8... Bh7 {[%clk 0:02:56.7]} 9. Bd3 {[%clk 0:03:10]} 9... Bxd3 {[%clk
0:02:56.4]} 10. Qxd3 {[%clk 0:03:11.8]} 10... e6 {[%clk 0:02:57]} 11. Bf4 {[%clk
0:03:12.5]} 11... Qa5+ {[%clk 0:02:53.4]} 12. Bd2 {[%clk 0:03:13.3]} 12... Qc7
{[%clk 0:02:54.6]} 13. O-O-O {[%clk 0:03:13.2]} 13... Ngf6 {[%clk 0:02:55.3]}
14. Qe2 {[%clk 0:03:11.4]} 14... Be7 {[%clk 0:02:55.5]} 15. Ne4 {[%clk
0:03:11.5]} 15... Nxe4 {[%clk 0:02:49.7]} 16. Qxe4 {[%clk 0:03:12.4]} 16... Nf6
{[%clk 0:02:50.4]} 17. Qe2 {[%clk 0:03:12.5]} 17... O-O-O {[%clk 0:02:44.3]} 18.
Ne5 {[%clk 0:03:07.4]} 18... Bd6 {[%clk 0:02:34.2]} 19. g4 {[%clk 0:02:56.9]}
19... Bxe5 {[%clk 0:02:19.8]} 20. dxe5 {[%clk 0:02:57.2]} 20... Nd5 {[%clk
0:02:15.5]} 21. f4 {[%clk 0:02:41.6]} 21... Rhe8 {[%clk 0:02:13.9]} 22. g5
{[%clk 0:02:36.9]} 22... Ne7 {[%clk 0:01:54.3]} 23. Bb4 {[%clk 0:02:04.2]} 23...
Rxd1+ {[%clk 0:01:48.3]} 24. Rxd1 {[%clk 0:02:01.4]} 24... c5 {[%clk 0:01:49.2]}
25. Bc3 {[%clk 0:01:44.2]} 25... Nf5 {[%clk 0:01:47.1]} 26. Qb5 {[%clk
0:01:13.3]} 26... Rd8 {[%clk 0:01:41.8]} 27. Rxd8+ {[%clk 0:00:56.4]} 27... Kxd8
{[%clk 0:01:41.3]} 28. b4 {[%clk 0:00:45.8]} 28... b6 {[%clk 0:01:10.8]} 29.
bxc5 {[%clk 0:00:43.8]} 29... Qxc5 {[%clk 0:01:11.4]} 30. Qd3+ {[%clk
0:00:35.5]} 30... Kc7 {[%clk 0:01:09.3]} 31. Kb2 {[%clk 0:00:33]} 31... Kb7
{[%clk 0:01:03.4]} 32. Qd7+ {[%clk 0:00:33.2]} 32... Qc7 {[%clk 0:01:01.1]} 33.
Qd3 {[%clk 0:00:33.4]} 33... a6 {[%clk 0:01:01.2]} 34. a4 {[%clk 0:00:33.4]}
34... Qc6 {[%clk 0:01:00.9]} 35. a5 {[%clk 0:00:34.7]} 35... b5 {[%clk
0:01:00.9]} 36. Bb4 {[%clk 0:00:32.1]} 36... Qd5 {[%clk 0:00:49.7]} 37. Qxd5+
{[%clk 0:00:31.9]} 37... exd5 {[%clk 0:00:50.5]} 38. Bf8 {[%clk 0:00:33.7]}
38... d4 {[%clk 0:00:48.3]} 39. Bxg7 {[%clk 0:00:22.8]} 1-0

[Event "*** Titled Tuesday Blitz"]
[Site "Chess.com"]
[Date "2019.10.01"]
[Round "1"]
[White "dragos420"]
[Black "LaStreetCmaMaison"]
[Result "1-0"]
[WhiteElo "2337"]
[BlackElo "2648"]
[TimeControl "180+2"]
[EndTime "13:08:27 PDT"]
[Termination "dragos420 won by checkmate"]

1. e4 {[%clk 0:02:58.7]} 1... e5 {[%clk 0:03:00]} 2. Nf3 {[%clk 0:02:59]} 2...
Nc6 {[%clk 0:03:00.9]} 3. Bc4 {[%clk 0:02:59.1]} 3... Nf6 {[%clk 0:03:01.3]} 4.
d3 {[%clk 0:02:59.8]} 4... Bc5 {[%clk 0:03:01.2]} 5. O-O {[%clk 0:03:00.7]} 5...
d6 {[%clk 0:02:52.5]} 6. c3 {[%clk 0:02:59.8]} 6... a6 {[%clk 0:02:48.7]} 7. Bb3
{[%clk 0:02:58.3]} 7... O-O {[%clk 0:02:47.5]} 8. h3 {[%clk 0:02:54.7]} 8... Be6
{[%clk 0:02:45.9]} 9. Bc2 {[%clk 0:02:53.9]} 9... Kh8 {[%clk 0:02:43.2]} 10. d4
{[%clk 0:02:51.7]} 10... Ba7 {[%clk 0:02:23.6]} 11. d5 {[%clk 0:02:51.2]} 11...
Qd7 {[%clk 0:02:16.9]} 12. dxc6 {[%clk 0:02:33.1]} 12... bxc6 {[%clk 0:02:17.8]}
13. Ng5 {[%clk 0:02:32.4]} 13... Rab8 {[%clk 0:02:17.4]} 14. Nd2 {[%clk
0:02:30.1]} 14... d5 {[%clk 0:02:12.5]} 15. Ndf3 {[%clk 0:02:27.1]} 15... h6
{[%clk 0:02:04.9]} 16. Nxe6 {[%clk 0:02:22.8]} 16... fxe6 {[%clk 0:02:06.8]} 17.
Nxe5 {[%clk 0:02:21.8]} 17... Qe8 {[%clk 0:02:08.2]} 18. exd5 {[%clk 0:02:20.2]}
18... cxd5 {[%clk 0:01:51]} 19. Ng6+ {[%clk 0:02:20.8]} 19... Kg8 {[%clk
0:01:52.6]} 20. Nxf8 {[%clk 0:02:21.6]} 20... Qxf8 {[%clk 0:01:54.4]} 21. Be3
{[%clk 0:02:13.4]} 21... c5 {[%clk 0:01:55.2]} 22. b4 {[%clk 0:02:10.7]} 22...
e5 {[%clk 0:01:45.8]} 23. bxc5 {[%clk 0:02:06.9]} 23... Rb2 {[%clk 0:01:34.9]}
24. Bb3 {[%clk 0:02:05.5]} 24... Bxc5 {[%clk 0:01:34.7]} 25. Bxd5+ {[%clk
0:01:46.4]} 25... Kh8 {[%clk 0:01:35.5]} 26. Bf3 {[%clk 0:01:36.2]} 26... e4
{[%clk 0:01:28.9]} 27. Be2 {[%clk 0:01:29]} 27... Bd6 {[%clk 0:01:29.8]} 28. Bd4
{[%clk 0:01:18.7]} 28... Bc7 {[%clk 0:01:23.4]} 29. Rb1 {[%clk 0:01:01.8]} 29...
Rxa2 {[%clk 0:01:11.8]} 30. Rb7 {[%clk 0:01:01.2]} 30... Qd6 {[%clk 0:01:10.7]}
31. g3 {[%clk 0:01:02.1]} 31... Nd5 {[%clk 0:01:09.6]} 32. Bc4 {[%clk
0:00:54.8]} 32... e3 {[%clk 0:01:06.5]} 33. Bxd5 {[%clk 0:00:41.5]} 33... e2
{[%clk 0:01:01.5]} 34. Qb3 {[%clk 0:00:26.7]} 34... exf1=Q+ {[%clk 0:00:57.4]}
35. Kxf1 {[%clk 0:00:28.6]} 35... Rd2 {[%clk 0:00:48.3]} 36. Qc4 {[%clk
0:00:27.1]} 36... Qd7 {[%clk 0:00:26.4]} 37. Rxc7 {[%clk 0:00:23.3]} 37... Qxh3+
{[%clk 0:00:27.2]} 38. Bg2 {[%clk 0:00:24.2]} 38... Qg4 {[%clk 0:00:19]} 39.
Bxg7+ {[%clk 0:00:21.5]} 39... Qxg7 {[%clk 0:00:15.8]} 40. Rc8+ {[%clk
0:00:22.1]} 40... Kh7 {[%clk 0:00:14]} 41. Be4+ {[%clk 0:00:23.1]} 41... Qg6
{[%clk 0:00:15.6]} 42. Qg8# {[%clk 0:00:23.6]} 1-0

[Event "*** Titled Tuesday Blitz"]
[Site "Chess.com"]
[Date "2019.10.01"]
[Round "1"]
[White "AntonSmirnov"]
[Black "Olga_Girya"]
[Result "1-0"]
[WhiteElo "2907"]
[BlackElo "2473"]
[TimeControl "180+2"]
[EndTime "13:08:28 PDT"]
[Termination "AntonSmirnov won by resignation"]

1. Nf3 {[%clk 0:02:59.5]} 1... d5 {[%clk 0:03:00.6]} 2. d4 {[%clk 0:02:59.1]}
2... Nf6 {[%clk 0:03:00.9]} 3. c4 {[%clk 0:02:59.6]} 3... e6 {[%clk 0:03:02.1]}
4. Nc3 {[%clk 0:03:00.7]} 4... Bb4 {[%clk 0:03:03]} 5. cxd5 {[%clk 0:03:01.6]}
5... exd5 {[%clk 0:03:03.5]} 6. Bg5 {[%clk 0:03:03.1]} 6... h6 {[%clk
0:03:04.8]} 7. Bh4 {[%clk 0:03:03]} 7... O-O {[%clk 0:03:04.1]} 8. e3 {[%clk
0:03:03.5]} 8... Bf5 {[%clk 0:03:05.1]} 9. Qb3 {[%clk 0:03:02.3]} 9... Bxc3+
{[%clk 0:02:47.8]} 10. bxc3 {[%clk 0:03:02]} 10... Nbd7 {[%clk 0:02:27.4]} 11.
Be2 {[%clk 0:03:00]} 11... c5 {[%clk 0:02:24.5]} 12. O-O {[%clk 0:02:58.4]}
12... c4 {[%clk 0:02:22.8]} 13. Qa3 {[%clk 0:02:59.4]} 13... Re8 {[%clk
0:02:18.2]} 14. Rfd1 {[%clk 0:02:55.7]} 14... g5 {[%clk 0:02:13.7]} 15. Bg3
{[%clk 0:02:56.2]} 15... Ne4 {[%clk 0:02:13.9]} 16. Ne5 {[%clk 0:02:51.3]} 16...
Nxe5 {[%clk 0:02:13]} 17. dxe5 {[%clk 0:02:51.1]} 17... Qe7 {[%clk 0:02:05.7]}
18. Qb2 {[%clk 0:02:47.9]} 18... Nxg3 {[%clk 0:02:04.9]} 19. hxg3 {[%clk
0:02:48.7]} 19... Qxe5 {[%clk 0:02:06.4]} 20. Rd4 {[%clk 0:02:48.8]} 20... b6
{[%clk 0:02:03.3]} 21. Rad1 {[%clk 0:02:49.3]} 21... Be6 {[%clk 0:02:00.4]} 22.
Qb5 {[%clk 0:02:48]} 22... Qf5 {[%clk 0:01:51.8]} 23. Bf3 {[%clk 0:02:46.5]}
23... Qc2 {[%clk 0:01:51.7]} 24. Bxd5 {[%clk 0:02:42.3]} 24... Qxc3 {[%clk
0:01:37]} 25. Rxc4 {[%clk 0:02:37.8]} 25... Qa5 {[%clk 0:01:34.7]} 26. Qxa5
{[%clk 0:02:37.9]} 26... bxa5 {[%clk 0:01:35.7]} 27. Bxe6 {[%clk 0:02:32]} 27...
Rxe6 {[%clk 0:01:36.4]} 28. Rc5 {[%clk 0:02:33.3]} 28... Rb8 {[%clk 0:01:17]}
29. Rxa5 {[%clk 0:02:33.9]} 29... a6 {[%clk 0:01:18.2]} 30. Rd2 {[%clk
0:02:29.1]} 30... Rb1+ {[%clk 0:01:16.9]} 31. Kh2 {[%clk 0:02:30.1]} 31... Rc6
{[%clk 0:01:13.5]} 32. g4 {[%clk 0:02:29.9]} 32... Kg7 {[%clk 0:01:12.1]} 33.
Kg3 {[%clk 0:02:30.5]} 33... Rf6 {[%clk 0:01:09.9]} 34. f3 {[%clk 0:02:27.4]}
34... Re1 {[%clk 0:01:06.1]} 35. e4 {[%clk 0:02:28]} 35... Rc6 {[%clk
0:01:06.5]} 36. Kf2 {[%clk 0:02:25.1]} 36... Rec1 {[%clk 0:01:06.5]} 37. Ra3
{[%clk 0:02:22.8]} 37... Rb6 {[%clk 0:00:59.4]} 38. Ke3 {[%clk 0:02:20.9]} 38...
Rbc6 {[%clk 0:00:56.2]} 39. Ra5 {[%clk 0:02:18.8]} 39... Kg6 {[%clk 0:00:56.5]}
40. Rad5 {[%clk 0:02:14.1]} 40... Kg7 {[%clk 0:00:55]} 41. Rd6 {[%clk
0:02:12.4]} 41... R1c3+ {[%clk 0:00:50.6]} 42. Ke2 {[%clk 0:02:09.5]} 42... Rxd6
{[%clk 0:00:49.9]} 43. Rxd6 {[%clk 0:02:11.4]} 43... Rc2+ {[%clk 0:00:51.2]} 44.
Rd2 {[%clk 0:02:12.4]} 44... Rc3 {[%clk 0:00:52.5]} 45. Kf2 {[%clk 0:02:08.2]}
45... Ra3 {[%clk 0:00:53.1]} 46. Ke2 {[%clk 0:02:04.1]} 46... Kg6 {[%clk
0:00:53.6]} 47. Kd1 {[%clk 0:02:05.2]} 47... h5 {[%clk 0:00:53.8]} 48. gxh5+
{[%clk 0:02:01]} 48... Kxh5 {[%clk 0:00:54.2]} 49. Kc1 {[%clk 0:02:02.1]} 49...
Kh4 {[%clk 0:00:54.1]} 50. Kb2 {[%clk 0:02:03.3]} 50... Re3 {[%clk 0:00:49.7]}
51. Rd7 {[%clk 0:02:03]} 51... Re2+ {[%clk 0:00:26.4]} 52. Kb3 {[%clk
0:02:03.6]} 52... f5 {[%clk 0:00:25.3]} 53. exf5 {[%clk 0:02:03]} 53... Rxg2
{[%clk 0:00:26.3]} 54. f6 {[%clk 0:01:56.3]} 54... Rf2 {[%clk 0:00:27.2]} 55.
Rd3 {[%clk 0:01:56.4]} 55... g4 {[%clk 0:00:28.1]} 56. fxg4 {[%clk 0:01:55.6]}
56... Rxf6 {[%clk 0:00:28.7]} 57. Rd4 {[%clk 0:01:56]} 57... Kg5 {[%clk
0:00:29.8]} 58. Kb4 {[%clk 0:01:56.3]} 58... Rf2 {[%clk 0:00:30.6]} 59. a4
{[%clk 0:01:57]} 59... Rf6 {[%clk 0:00:31.2]} 60. Ka5 {[%clk 0:01:57.9]} 60...
Rc6 {[%clk 0:00:32]} 61. Rb4 {[%clk 0:01:58.8]} 61... Re6 {[%clk 0:00:32.6]} 62.
Rb6 {[%clk 0:01:59.7]} 62... Re4 {[%clk 0:00:33.8]} 63. Rxa6 {[%clk 0:02:00.7]}
63... Rxg4 {[%clk 0:00:35.1]} 64. Re6 {[%clk 0:01:59.7]} 64... Kf5 {[%clk
0:00:36.1]} 65. Re8 {[%clk 0:01:59.6]} 65... Rg6 {[%clk 0:00:35]} 66. Kb5 {[%clk
0:02:00.4]} 66... Re6 {[%clk 0:00:33.9]} 67. Rxe6 {[%clk 0:02:01.2]} 67... Kxe6
{[%clk 0:00:34.9]} 68. Kc6 {[%clk 0:02:02.9]} 68... Ke7 {[%clk 0:00:35.7]} 69.
a5 {[%clk 0:02:04.2]} 1-0

[Event "*** Titled Tuesday Blitz"]
[Site "Chess.com"]
[Date "2019.10.01"]
[Round "1"]
[White "ShahMatKanal"]
[Black "Jospem"]
[Result "0-1"]
[WhiteElo "2464"]
[BlackElo "2868"]
[TimeControl "180+2"]
[EndTime "13:08:32 PDT"]
[Termination "Jospem won on time"]

1. d4 {[%clk 0:03:01.9]} 1... Nf6 {[%clk 0:03:00.1]} 2. Bf4 {[%clk 0:03:00.7]}
2... g6 {[%clk 0:03:00.3]} 3. e3 {[%clk 0:03:01.3]} 3... Bg7 {[%clk 0:03:02.2]}
4. Nf3 {[%clk 0:03:02.8]} 4... O-O {[%clk 0:03:04]} 5. h3 {[%clk 0:03:04.5]}
5... d6 {[%clk 0:03:05.9]} 6. Be2 {[%clk 0:03:05.9]} 6... Nc6 {[%clk 0:03:07.2]}
7. Bh2 {[%clk 0:03:07.4]} 7... Nd7 {[%clk 0:03:07.8]} 8. O-O {[%clk 0:03:08]}
8... e5 {[%clk 0:03:09.3]} 9. c3 {[%clk 0:03:09.3]} 9... f5 {[%clk 0:03:09.6]}
10. b4 {[%clk 0:03:08.8]} 10... h6 {[%clk 0:03:09.6]} 11. b5 {[%clk 0:03:09.6]}
11... Ne7 {[%clk 0:03:09.4]} 12. a4 {[%clk 0:03:08.2]} 12... e4 {[%clk
0:03:10.3]} 13. Nfd2 {[%clk 0:03:09.1]} 13... g5 {[%clk 0:03:11.6]} 14. c4
{[%clk 0:03:07.8]} 14... Nf6 {[%clk 0:03:12.2]} 15. Nc3 {[%clk 0:03:08.9]} 15...
Ng6 {[%clk 0:03:12.8]} 16. a5 {[%clk 0:03:03.9]} 16... Be6 {[%clk 0:03:08]} 17.
a6 {[%clk 0:03:02.8]} 17... b6 {[%clk 0:03:08.8]} 18. Rc1 {[%clk 0:02:54]} 18...
Qe7 {[%clk 0:03:09.5]} 19. Nb3 {[%clk 0:02:49]} 19... Rad8 {[%clk 0:03:09.2]}
20. Qc2 {[%clk 0:02:48.8]} 20... Nh4 {[%clk 0:02:58.6]} 21. d5 {[%clk
0:02:41.3]} 21... Bd7 {[%clk 0:02:59.3]} 22. Nd4 {[%clk 0:02:42.2]} 22... Qf7
{[%clk 0:02:51.9]} 23. Nc6 {[%clk 0:02:10.4]} 23... Ra8 {[%clk 0:02:52.2]} 24.
Rfd1 {[%clk 0:01:56]} 24... Kh8 {[%clk 0:02:53.2]} 25. Nd4 {[%clk 0:01:08.6]}
25... Rfe8 {[%clk 0:02:48.1]} 26. Na2 {[%clk 0:01:01.1]} 26... Ng6 {[%clk
0:02:45.7]} 27. Ne6 {[%clk 0:00:55.4]} 27... Bxe6 {[%clk 0:02:34.6]} 28. dxe6
{[%clk 0:00:57.3]} 28... Qxe6 {[%clk 0:02:36.5]} 29. Nb4 {[%clk 0:00:57.5]}
29... f4 {[%clk 0:02:36.1]} 30. Bf1 {[%clk 0:00:50.1]} 30... f3 {[%clk
0:02:36.8]} 31. Nd5 {[%clk 0:00:47.3]} 31... Qf7 {[%clk 0:02:12.1]} 32. gxf3
{[%clk 0:00:37.5]} 32... exf3 {[%clk 0:02:08.2]} 33. Nxc7 {[%clk 0:00:37.7]}
33... Qxc7 {[%clk 0:01:36.2]} 34. Qxg6 {[%clk 0:00:38.1]} 34... Re6 {[%clk
0:01:37.7]} 35. c5 {[%clk 0:00:34.5]} 35... bxc5 {[%clk 0:01:33.9]} 36. Bc4
{[%clk 0:00:35.6]} 36... Qd7 {[%clk 0:01:20.3]} 37. Bxe6 {[%clk 0:00:35.1]}
37... Qxe6 {[%clk 0:01:22.2]} 38. Qd3 {[%clk 0:00:12.8]} 38... Qxh3 {[%clk
0:01:19]} 39. Qf1 {[%clk 0:00:14]} 39... Qg4+ {[%clk 0:01:20]} 40. Kh1 {[%clk
0:00:15.4]} 40... Ne4 {[%clk 0:01:19.5]} 41. Qg1 {[%clk 0:00:12.5]} 41... Qh4
{[%clk 0:01:13.7]} 42. Rf1 {[%clk 0:00:11.6]} 42... d5 {[%clk 0:01:07]} 43. Rcd1
{[%clk 0:00:11]} 43... d4 {[%clk 0:01:03.8]} 44. exd4 {[%clk 0:00:11.5]} 44...
Bxd4 {[%clk 0:01:05.7]} 45. Rxd4 {[%clk 0:00:11.4]} 45... cxd4 {[%clk
0:01:07.6]} 46. b6 {[%clk 0:00:02.8]} 46... axb6 {[%clk 0:01:09.5]} 47. a7
{[%clk 0:00:03.9]} 47... Rxa7 {[%clk 0:01:10]} 48. Ra1 {[%clk 0:00:03.5]} 48...
Nxf2+ {[%clk 0:01:09.2]} 49. Qxf2 {[%clk 0:00:03]} 49... Rxa1+ {[%clk
0:01:11.1]} 0-1

[Event "*** Titled Tuesday Blitz"]
[Site "Chess.com"]
[Date "2019.10.01"]
[Round "1"]
[White "GHANDEEVAM2003"]
[Black "LastHeroJr"]
[Result "0-1"]
[WhiteElo "2983"]
[BlackElo "2504"]
[TimeControl "180+2"]
[EndTime "13:08:43 PDT"]
[Termination "LastHeroJr won by resignation"]

1. c4 {[%clk 0:03:01.4]} 1... e5 {[%clk 0:02:59.4]} 2. g3 {[%clk 0:03:01.7]}
2... Nf6 {[%clk 0:03:00]} 3. Bg2 {[%clk 0:03:02.6]} 3... d5 {[%clk 0:03:01.1]}
4. cxd5 {[%clk 0:03:03.2]} 4... Nxd5 {[%clk 0:03:03]} 5. Nc3 {[%clk 0:03:04.1]}
5... Nb6 {[%clk 0:03:03.5]} 6. Nf3 {[%clk 0:03:05]} 6... Nc6 {[%clk 0:03:04.9]}
7. O-O {[%clk 0:03:06.5]} 7... Be7 {[%clk 0:03:06.2]} 8. d3 {[%clk 0:03:08.1]}
8... O-O {[%clk 0:03:07.5]} 9. Be3 {[%clk 0:03:09.5]} 9... Re8 {[%clk
0:03:08.8]} 10. a3 {[%clk 0:03:08.4]} 10... Bf8 {[%clk 0:03:09.1]} 11. b4 {[%clk
0:03:09.1]} 11... a5 {[%clk 0:03:10.3]} 12. Bxb6 {[%clk 0:03:01.7]} 12... cxb6
{[%clk 0:02:49.3]} 13. b5 {[%clk 0:03:02.7]} 13... Nd4 {[%clk 0:02:42.1]} 14. e3
{[%clk 0:03:03.4]} 14... Nxf3+ {[%clk 0:02:10.7]} 15. Bxf3 {[%clk 0:03:05.3]}
15... Rb8 {[%clk 0:02:11.8]} 16. Bd5 {[%clk 0:02:50.6]} 16... Bh3 {[%clk
0:01:53]} 17. Bxf7+ {[%clk 0:02:45.4]} 17... Kxf7 {[%clk 0:01:43.4]} 18. Qh5+
{[%clk 0:02:45.8]} 18... Kg8 {[%clk 0:01:45]} 19. Qxh3 {[%clk 0:02:47.3]} 19...
Qxd3 {[%clk 0:01:46.2]} 20. Na2 {[%clk 0:01:45.7]} 20... Bxa3 {[%clk 0:01:24.4]}
21. Rfd1 {[%clk 0:01:38.3]} 21... Qxb5 {[%clk 0:01:18.8]} 22. Nc3 {[%clk
0:01:38.9]} 22... Qb3 {[%clk 0:01:18.6]} 23. Ne4 {[%clk 0:01:34.1]} 23... Bf8
{[%clk 0:01:09.7]} 24. Rab1 {[%clk 0:01:17.7]} 24... Qe6 {[%clk 0:01:08.7]} 25.
Qf1 {[%clk 0:01:17.4]} 25... a4 {[%clk 0:01:07.1]} 26. Qb5 {[%clk 0:01:18.3]}
26... Qc6 {[%clk 0:00:59.9]} 27. f3 {[%clk 0:00:46.2]} 27... a3 {[%clk
0:00:53.1]} 28. Qb3+ {[%clk 0:00:36.6]} 28... Qe6 {[%clk 0:00:51.3]} 29. Qc2
{[%clk 0:00:35.4]} 29... Rec8 {[%clk 0:00:47.2]} 30. Qe2 {[%clk 0:00:34.4]}
30... Qc4 {[%clk 0:00:40.6]} 31. Qxc4+ {[%clk 0:00:32.4]} 31... Rxc4 {[%clk
0:00:42.5]} 32. Rxb6 {[%clk 0:00:33.7]} 32... Rbc8 {[%clk 0:00:36.4]} 33. Rbb1
{[%clk 0:00:35]} 33... Rc2 {[%clk 0:00:35.1]} 34. Ra1 {[%clk 0:00:31.2]} 34...
a2 {[%clk 0:00:35.8]} 35. Nd2 {[%clk 0:00:27.8]} 35... b5 {[%clk 0:00:35.7]} 36.
Nb3 {[%clk 0:00:26.1]} 36... Rb2 {[%clk 0:00:36.9]} 37. Nc1 {[%clk 0:00:23.8]}
37... Rb1 {[%clk 0:00:35.4]} 38. Nxa2 {[%clk 0:00:24.6]} 38... Rxa1 {[%clk
0:00:33.5]} 39. Rxa1 {[%clk 0:00:26.5]} 39... Ra8 {[%clk 0:00:35.1]} 40. Rb1
{[%clk 0:00:28.1]} 40... Rxa2 {[%clk 0:00:35.3]} 41. Rxb5 {[%clk 0:00:29.7]}
41... e4 {[%clk 0:00:30.8]} 42. fxe4 {[%clk 0:00:28.4]} 42... Kf7 {[%clk
0:00:31.7]} 43. Rf5+ {[%clk 0:00:28.3]} 43... Ke8 {[%clk 0:00:31.9]} 44. Rf3
{[%clk 0:00:27.7]} 44... Bc5 {[%clk 0:00:31.9]} 45. g4 {[%clk 0:00:26.7]} 45...
Re2 {[%clk 0:00:32.3]} 46. Rf5 {[%clk 0:00:23.1]} 46... Bxe3+ {[%clk 0:00:33.2]}
47. Kf1 {[%clk 0:00:24]} 47... Rxh2 {[%clk 0:00:34.3]} 0-1